[Event "2nd Serbia Open Masters 2022"]
[Site "Novi Sad"]
[Date "2022.06.28"]
[Round "1.30"]
[White "Nurmanova, Alua"]
[Black "Greenfeld, Alon"]
[Result "1/2-1/2"]
[ECO "B68"]
[WhiteElo "2194"]
[BlackElo "2503"]
[Annotator "TA"]
[PlyCount "65"]
[EventDate "2022.06.28"]
[EventType "swiss"]
[EventCountry "SRB"]
[SourceTitle "playchess.com"]
[Source "ChessBase"]
[SourceQuality "1"]
[TimeControl "40/5400+30:900+30"]

{[%evp 19,65,43,51,2,7,16,24,54,145,139,147,124,137,129,141,119,117,137,262,70,50,54,209,0,657,600,749,748,731,737,677,649,628,0,0,0,0,0,0,-1099,0,0,0,0,0,0,0,0]} 1. e4 {[%emt 0:00:02]} c5 {[%emt 0:00:30]} 2. Nf3 {[%emt 0:00:07]} Nc6 {[%emt 0:00:52]} 3. d4 {[%emt 0:00:11]} cxd4 {[%emt 0:00:08]} 4. Nxd4 {[%emt 0:00:06]} Nf6 {[%emt 0:00:47]} 5. Nc3 {[%emt 0:00:11]} d6 {[%emt 0:00:39]} 6. Bg5 {[%emt 0:00:28]} e6 {[%emt 0:00:44]} 7. Qd2 {[%emt 0:00:52]} a6 {[%emt 0:02:26]} 8. O-O-O {[%emt 0:02:01]} Be7 {[%emt 0:01:08]} 9. f4 {[%emt 0:07:04]} Bd7 $1 {[%emt 0:01:27] The main line 9...Bd7 scores better than 9...Nxd4.} 10. Nf3 {[%emt 0:03:34]} b5 {[%emt 0:00:30]} 11. a3 {[%emt 0:13:49] B68: Sicilian: Richter-Rauzer: 7...a6 8 0-0-0 Bd7 9 f4 Be7 .} (11. Bxf6 $14 gxf6 12. Kb1) 11... b4 $11 {[%emt 0:09:36]} 12. axb4 {[%emt 0:00:13]} Nxb4 {[%emt 0:00:10]} 13. Kb1 {[%emt 0:08:37] [#] White has an edge.} (13. Bxf6 $5 gxf6 14. Bc4 $11) 13... O-O $146 {[%emt 0:23:42]} (13... Bc6 $14) ({Predecessor:} 13... h6 14. Bh4 Rb8 15. e5 dxe5 16. Nxe5 Rb7 17. Bc4 Bb5 18. Qxd8+ Bxd8 19. Nxb5 axb5 20. Bxb5+ Rxb5 21. Rxd8+ Kxd8 22. Nxf7+ {1-0 (26) Shankland,S (2713)-Maghsoodloo,P (2656) Biel 2019}) 14. e5 $16 {[%emt 0:06:20]} Nfd5 {[%emt 0:04:38]} 15. Nxd5 {[%emt 0:03:02]} Nxd5 {[%emt 0:00:11]} 16. Bxe7 $1 {[%emt 0:11:30]} Nxe7 {[%emt 0:01:24]} 17. exd6 {[%emt 0:03:51]} Nc6 {[%emt 0:06:23]} 18. Bd3 $36 {[%emt 0:03:42][%cal Od3h7][%mdl 2048] Threatens to win with Bxh7+! Keeping Black busy. White is more active.} Qb6 {[%emt 0:03:13] [#]} (18... h6 $16 19. Rhe1 Rb8) 19. c3 $2 {[%emt 0:12:54]} ({Only move:} 19. Bxh7+ $1 $18 {[%mdl 512]} Kxh7 20. Ng5+ Kg6 21. Qd3+ f5 22. Qg3 (22. Qh3 Rab8 $11)) 19... Rab8 $14 {[%emt 0:02:22]} 20. Rhe1 {[%emt 0:01:00]} Na5 $2 {[%emt 0:05:07]} (20... g6 $14) 21. Re2 $2 {[%emt 0:05:32]} (21. b4 $18) 21... Nb3 $2 {[%emt 0:08:19][%mdl 8192] [#]} (21... g6 $11) 22. Bxh7+ $1 $18 {[%emt 0:06:59][%mdl 512]} Kxh7 {[%emt 0:03:33]} (22... Kh8 23. Qe1) 23. Ng5+ $1 {[%emt 0:00:06]} Kg6 {[%emt 0:01:42]} 24. Qd3+ {[%emt 0:00:11]} f5 {[%emt 0:00:16]} 25. Qg3 $1 {[%emt 0:02:14]} Kf6 {[%emt 0:00:40] [#] ...Qa5 is the strong threat.} 26. Qh4 $2 {[%emt 0:00:59]} (26. Nxe6 $1 $18 {[%mdl 512]} Bxe6 27. Qg5+ Kf7 {[#]} 28. Rxe6 $1 {[%mdl 512]}) 26... Rh8 $11 {[%emt 0:05:15]} 27. Ne4+ {[%emt 0:01:02][%mdl 64] Discovered Attack (Double check)} Kg6 {[%emt 0:00:56][%cal Bf6g6,Bg6h7,Bh7g8][%mdl 32]} 28. Qg5+ {[%emt 0:00:13]} Kh7 {[%emt 0:00:25]} 29. Qh5+ {[%emt 0:00:38]} Kg8 {[%emt 0:00:08]} 30. Nf6+ {[%emt 0:00:15] The position is equal.} gxf6 {[%emt 0:00:16]} 31. Qg6+ {[%emt 0:00:04]} Kf8 {[%emt 0:00:09] And now ...Qd8 would win.} 32. Qxf6+ {[%emt 0:00:06]} Kg8 {[%emt 0:00:03] aiming for ...Rh7.} 33. Qg6+ {[%emt 0:00:29] Weighted Error Value: White=0.56/Black=0.90} 1/2-1/2

[Event "2nd Serbia Open Masters 2022"]
[Site "Novi Sad"]
[Date "2022.06.28"]
[Round "1.31"]
[White "Kovacevic, Aleksandar"]
[Black "Sharan, Rao"]
[Result "1/2-1/2"]
[ECO "C14"]
[WhiteElo "2503"]
[BlackElo "2274"]
[Annotator "TA"]
[PlyCount "130"]
[EventDate "2022.06.28"]
[EventType "swiss"]
[EventCountry "SRB"]
[SourceTitle "playchess.com"]
[Source "ChessBase"]
[SourceQuality "1"]
[TimeControl "40/5400+30:900+30"]

{[%evp 14,130,24,12,25,17,12,12,25,6,16,2,58,0,23,22,19,15,55,50,116,112,160,134,172,172,146,156,168,163,240,247,266,268,233,202,279,224,224,155,155,138,137,96,133,103,337,289,358,365,357,360,361,354,333,349,349,350,343,331,493,36,36,50,8,8,8,8,8,8,8,8,8,8,8,8,8,8,8,8,8,8,8,8,8,8,8,8,8,8,8,0,0,0,0,0,8,8,8,8,8,8,8,8,8,8,8,8,8,0,0,0,0,0,0,0,0,0,0]} 1. e4 {[%emt 0:00:15]} e6 {[%emt 0:00:05]} 2. d4 {[%emt 0:00:15]} d5 {[%emt 0:00:05]} 3. Nc3 {[%emt 0:00:15]} Nf6 {[%emt 0:00:05]} 4. Bg5 {[%emt 0:00:19]} Be7 {[%emt 0:00:06]} 5. e5 {[%emt 0:00:11]} Nfd7 {[%emt 0:00:04]} 6. h4 {[%emt 0:00:27]} h6 {[%emt 0:00:05]} 7. Bxe7 {[%emt 0:00:40]} Qxe7 {[%emt 0:00:05]} 8. f4 {[%emt 0:00:50][%cal Of4f5]} a6 {[%emt 0:00:42] C14: French: Classical System: 4 Bg5 Be7 main line.} 9. Nf3 {[%emt 0:00:23]} c5 {[%emt 0:00:20]} 10. Ne2 {[%emt 0:03:40]} Nc6 {[%emt 0:01:05]} 11. c3 {[%emt 0:04:38] [#]} f6 $146 {[%emt 0:04:16]} ({Predecessor:} 11... b5 12. g4 h5 13. gxh5 Rxh5 14. Ng3 Rh8 15. Qd2 b4 16. cxb4 Nxb4 17. h5 a5 {1-0 (35) Lei,T (2505)-Hou,Y (2658) Chess.com INT 2021}) 12. h5 {[%emt 0:05:46]} cxd4 {[%emt 0:02:08]} (12... O-O $11) 13. cxd4 {[%emt 0:01:56]} (13. Nh4 $1 $14 dxc3 14. Ng6 cxb2 15. Nxe7 bxa1=R 16. Qxa1 Nxe7 17. Nd4) 13... fxe5 {[%emt 0:01:03]} 14. fxe5 {[%emt 0:00:45]} (14. Nxe5 Ndxe5 15. dxe5 O-O $11) 14... O-O {[%emt 0:02:28]} 15. Qd2 {[%emt 0:03:39]} Qf7 {[%emt 0:09:31] Prevents Nf4.} (15... Qb4 {seems wilder.} 16. Rh4 Nb6 17. Nf4 Nc4) 16. Rh4 {[%emt 0:01:50]} Nb6 {[%emt 0:05:37]} (16... Qe7 $14 17. Rg4 Qb4) 17. Nf4 $16 {[%emt 0:04:33]} Ne7 {[%emt 0:00:17] Prevents Ng6.} (17... Qc7 $142) 18. b3 $1 {[%emt 0:03:00] White is more active.} Bd7 {[%emt 0:02:56]} 19. Bd3 {[%emt 0:12:18]} Nf5 {[%emt 0:02:01]} 20. Rg4 {[%emt 0:00:56]} Bb5 {[%emt 0:02:06]} 21. Bb1 {[%emt 0:06:50]} Rfc8 {[%emt 0:07:07]} (21... Nc8 {was worth a try.}) 22. Ng6 $18 {[%emt 0:04:37]} Qc7 {[%emt 0:14:40]} 23. Bxf5 {[%emt 0:07:03]} exf5 {[%emt 0:00:07]} 24. Rf4 {[%emt 0:00:19][%cal Bg4f4,Bf4f5,Bf5f7][%mdl 32]} Kh7 {[%emt 0:04:40]} 25. a4 {[%emt 0:06:29]} (25. Rxf5 $6 Qc2 26. Qxc2 (26. Rf7 $2 Qe4+ 27. Kf2 Rc2 $19) 26... Rxc2 $16) 25... Be8 {[%emt 0:01:44]} 26. Rxf5 {[%emt 0:10:33]} Bxg6 {[%emt 0:05:14]} 27. hxg6+ {[%emt 0:00:05]} Kxg6 {[%emt 0:00:07]} 28. Nh4+ {[%emt 0:01:43]} Kh7 {[%emt 0:00:02]} 29. a5 {[%emt 0:03:58]} Qe7 $2 {[%emt 0:00:05] [#]} (29... Nd7 $16 {was necessary.}) 30. Qf4 $1 {[%emt 0:09:07]} ({Worse is} 30. axb6 Qxh4+ 31. Rf2 (31. Qf2 Qe4+ 32. Kf1 Rc2 $17) 31... Rf8 $17) (30. Rh5 Qe6 $16) 30... Nd7 {[%emt 0:36:39]} 31. Rf7 {[%emt 0:00:06]} Qb4+ {[%emt 0:00:00]} 32. Kf1 {[%emt 0:02:11]} Rf8 {[%emt 0:00:00] [#]} 33. e6 {[%emt 0:01:46] Hoping for Re1.} Rxf7 {[%emt 0:00:00]} 34. exf7 {[%emt 0:00:02] Intending Qf5+ and mate. Dancing on a razor blade.} (34. Qxf7 $2 {loses.} Rf8 35. Qxf8 Qxf8+ $19) 34... Qb5+ {[%emt 0:00:00]} 35. Kg1 {[%emt 0:00:23] White threatens Qf5+ and mate.} Qd3 {[%emt 0:00:00]} 36. Re1 {[%emt 0:01:32] Threatens to win with Re8.} Nf6 {[%emt 0:00:00] Inhibits Re8.} (36... Rf8 $142 37. Re7 g5 38. Qf5+ Qxf5 39. Nxf5 Nf6 40. Rxb7 Ne4) 37. Qf5+ $2 {[%emt 0:02:51]} (37. Nf3 $18) 37... Qxf5 $14 {[%emt 0:00:00]} 38. Nxf5 {[%emt 0:00:03][%mdl 4096] Endgame KRN-KRN} Kg6 {[%emt 0:02:16][%csl LRf5,LRf7]} 39. Nd6 {[%emt 0:00:21] The position is equal.} Ne4 $1 {[%emt 0:00:26] [#]} 40. Rf1 $1 {[%emt 0:00:00]} Rf8 $132 {[%emt 0:00:00][%mdl 2048] Black has counterplay} 41. Nxb7 {[%emt 0:09:22]} Rxf7 {[%emt 0:01:44]} 42. Rxf7 {[%emt 0:00:26]} Kxf7 $11 {[%emt 0:00:02] KN-KN} 43. b4 {[%emt 0:00:22][%cal Ob4b5] And now b5! would win.} ({But not} 43. Nc5 Nxc5 44. dxc5 Ke6 $17) 43... Ke7 {[%emt 0:06:48]} 44. b5 {[%emt 0:01:13]} Kd7 {[%emt 0:00:06]} (44... axb5 $2 45. a6 $18) 45. bxa6 {[%emt 0:01:10]} Kc7 {[%emt 0:00:30] [#]} 46. Nd8 $1 {[%emt 0:00:49]} Kb8 {[%emt 0:00:36]} (46... Kxd8 $2 47. a7 Ng5 48. a8=Q+ $18) 47. Nc6+ {[%emt 0:00:33]} Ka8 {[%emt 0:04:00]} 48. Kf1 {[%emt 0:04:04]} h5 {[%emt 0:00:22]} 49. Ke2 {[%emt 0:00:22]} g5 {[%emt 0:00:18]} 50. Kf3 {[%emt 0:00:25]} Nc3 {[%emt 0:02:20]} 51. Ke3 {[%emt 0:01:28] With the idea Nb4.} Nb5 {[%emt 0:00:42]} 52. Ne7 {[%emt 0:03:30]} Nc7 {[%emt 0:00:07]} 53. Ng8 {[%emt 0:00:10]} Ka7 {[%emt 0:01:43]} 54. Nf6 {[%emt 0:00:14]} h4 {[%emt 0:02:13]} 55. Kf3 {[%emt 0:00:14]} Kxa6 {[%emt 0:00:36]} 56. Kg4 {[%emt 0:00:09]} Kxa5 {[%emt 0:00:26]} 57. Kxg5 {[%emt 0:00:32]} Kb4 {[%emt 0:00:53]} 58. Kf5 {[%emt 0:01:28]} Kc4 {[%emt 0:00:19]} 59. Ke5 {[%emt 0:00:18]} Nb5 {[%emt 0:00:29]} 60. Nxd5 {[%emt 0:00:09] Black must now prevent Ne3+.} Nxd4 {[%emt 0:00:06]} 61. Ke4 {[%emt 0:01:15]} Nc2 {[%emt 0:01:56]} 62. Ne3+ {[%emt 0:00:12]} Nxe3 {[%emt 0:00:06]} 63. Kxe3 {[%emt 0:00:02]} h3 {[%emt 0:00:52]} 64. gxh3 {[%emt 0:00:05] Threatening mate with Kf4.} Kd5 {[%emt 0:00:03]} 65. Kf4 {[%emt 0:00:05] Kg5 would kill now.} Ke6 {[%emt 0:00:01] Black escapes into a draw.  Weighted Error Value: White=0.20 (precise) /Black=0.17 (very precise)} 1/2-1/2

[Event "2nd Serbia Open Masters 2022"]
[Site "Novi Sad"]
[Date "2022.06.28"]
[Round "1.32"]
[White "Eren, Ataberk"]
[Black "Stremavicius, Titas"]
[Result "1-0"]
[ECO "A84"]
[WhiteElo "2273"]
[BlackElo "2508"]
[Annotator "TA"]
[PlyCount "135"]
[EventDate "2022.06.28"]
[EventType "swiss"]
[EventCountry "SRB"]
[SourceTitle "playchess.com"]
[Source "ChessBase"]
[SourceQuality "1"]
[TimeControl "40/5400+30:900+30"]

{[%evp 9,135,32,26,27,34,25,36,34,39,38,43,18,43,14,27,15,17,12,18,23,27,28,34,21,24,-8,-8,-8,-7,-78,-61,-62,8,11,0,-46,0,0,0,0,0,0,0,0,0,0,0,-111,-102,-98,-107,-131,0,0,0,0,220,205,334,101,876,275,277,274,851,851,850,846,829,849,1566,1405,1780,1669,5381,558,638,646,646,646,646,646,646,646,646,646,627,602,574,0,721,706,684,628,561,277,227,203,538,538,29960,29961,29960,29962,29963,29964,29962,29964,29960,29965,29965,29967,29970,29971,29971,29971,29971,0,29967,29965,29969,29967,29962,11456,29977,29978,29978,29979]} 1. d4 {[%emt 0:00:09]} f5 {[%emt 0:00:34]} 2. c4 {[%emt 0:02:14]} Nf6 {[%emt 0:00:09]} 3. Nf3 {[%emt 0:00:33]} e6 {[%emt 0:00:36]} 4. g3 {[%emt 0:00:57]} Bb4+ {[%emt 0:03:57]} 5. Bd2 {[%emt 0:03:24]} Be7 {[%emt 0:00:22]} 6. Bg2 {[%emt 0:00:27] A84: Dutch Defence: 2 c4 Miscellaneous.} d5 {[%emt 0:00:39]} 7. O-O {[%emt 0:00:21]} Ne4 {[%emt 0:00:07]} 8. Nc3 {[%emt 0:03:37] [#] White is slightly better.} Nxd2 $146 {[%emt 0:03:41]} ({Predecessor:} 8... c6 9. Bf4 Nd7 10. h4 O-O 11. Rc1 Qe8 12. Ne5 Nxe5 13. Bxe5 Nd6 14. cxd5 exd5 {0-1 (38) Neukirchner,P (2285)-Rapport,R (2715) Karlsruhe 2018}) 9. Qxd2 {[%emt 0:04:51]} c6 {[%emt 0:00:27]} 10. h4 {[%emt 0:07:36]} Nd7 {[%emt 0:02:14]} 11. b3 {[%emt 0:07:12]} O-O {[%emt 0:00:54]} 12. e3 {[%emt 0:00:20]} a5 {[%emt 0:03:45]} 13. Qc2 {[%emt 0:00:53]} h6 {[%emt 0:06:05]} 14. Ne2 {[%emt 0:04:56]} Bd6 {[%emt 0:00:38]} 15. Nf4 {[%emt 0:03:58]} Qf6 {[%emt 0:00:34]} 16. a4 {[%emt 0:04:53]} Re8 {[%emt 0:03:03]} 17. Qc3 {[%emt 0:13:56]} e5 {[%emt 0:03:12]} 18. dxe5 {[%emt 0:00:44]} Nxe5 {[%emt 0:07:34]} 19. Nd4 {[%emt 0:04:36]} (19. Kh1 $11 {remains equal.}) 19... dxc4 {[%emt 0:05:52]} 20. bxc4 {[%emt 0:00:23]} g5 {[%emt 0:00:07]} (20... Bb4 $15 21. Qb3 g5 22. hxg5 hxg5) 21. hxg5 $11 {[%emt 0:00:50]} hxg5 {[%emt 0:00:03]} 22. Nd3 {[%emt 0:12:30]} (22. c5 $11) 22... Ng4 {[%emt 0:01:34]} (22... Nxd3 $15 23. Qxd3 Bc5) 23. c5 {[%emt 0:01:16]} Qh8 {[%emt 0:13:21][%csl Gg4][%cal Rh8h2]} 24. Rfe1 $1 {[%emt 0:04:35]} Bxg3 {[%emt 0:00:23]} 25. fxg3 {[%emt 0:01:54]} Qh2+ {[%emt 0:00:07]} (25... Rxe3 $2 26. Qb3+ (26. Kf1 $2 Be6 $19) 26... Kf8 27. Nf3 Rxf3 28. Bxf3 $18) 26. Kf1 {[%emt 0:00:02]} Qxg3 {[%emt 0:05:24]} (26... Nxe3+ 27. Rxe3 $1 {[%mdl 512]} Rxe3 28. Qd2 Qxg3 29. Ne2 Rxe2 30. Qxe2 $16) 27. Ra2 {[%emt 0:11:05]} (27. Nc2 f4 28. Nd4 (28. exf4 $2 Bf5 $19) 28... Nxe3+ 29. Rxe3 fxe3 30. Qb3+ Be6 $1 {[%mdl 512]} 31. Nxe6 e2+ 32. Kg1 Qe3+ 33. Kh2 Rxe6 $19) 27... Nxe3+ {[%emt 0:04:11]} (27... Nh2+ 28. Kg1 $16) 28. Rxe3 {[%emt 0:01:39]} Rxe3 $17 {[%emt 0:00:02]} 29. Qc4+ {[%emt 0:01:35]} Kf8 {[%emt 0:02:56]} 30. Ne2 {[%emt 0:00:19]} Qg4 {[%emt 0:01:24]} ({Better is} 30... Qh4 $1 $17 {[%cal Rh4c4]} 31. Qxh4 gxh4) 31. Qc3 $11 {[%emt 0:01:21]} Kg8 {[%emt 0:02:16] Prevents Qh8+. ...Be6 is the strong threat.} 32. Qf6 {[%emt 0:01:21] aiming for Ne5.} Re6 {[%emt 0:08:44] Black is now going downhill.} (32... Rxd3 $11 33. Qg6+ Kh8 34. Qh6+ Kg8 35. Qg6+ Kh8 36. Qh6+ Kg8 37. Qg6+) 33. Qd8+ $18 {[%emt 0:00:15][%mdl 1024] White has strong compensation.} Kh7 {[%emt 0:00:06]} (33... Kf7 $142 34. Qh8 (34. Qc7+ Kg8 $16) 34... Qh4 35. Ne5+ Rxe5 36. Qxe5 g4) 34. Ne5 $2 {[%emt 0:01:07] Chess con chili.} Qh5 $2 {[%emt 0:05:30][%mdl 8192] [#]} (34... Rxe5 $16 35. Qc7+ Bd7 36. Qxe5 f4) 35. Nd7 $2 {[%emt 0:00:47] Pair of Knights!} (35. Nf3 Re8 36. Qf6 (36. Nxg5+ Kg8 $11) 36... Kg8 $16) (35. Nf4 $1 {[%mdl 512]} gxf4 36. Bf3 Qh3+ 37. Rg2 Qh1+ 38. Kf2 Qxg2+ 39. Bxg2 Rxe5 40. Qc7+ Bd7 41. Qxe5) 35... Qf7 {[%emt 0:02:42]} 36. Nf8+ {[%emt 0:00:07]} Kh6 $2 {[%emt 0:00:11]} (36... Kg7 37. Nxe6+ Bxe6 38. Qxg5+ (38. Qxa8 Bxa2 39. Qd8 Qf6 $14) 38... Qg6 39. Qe7+ Qf7 40. Qg5+ Qg6 41. Qxg6+ Kxg6 42. Nf4+ Kf6 43. Nxe6 Kxe6) 37. Ra3 {[%emt 0:01:08]} Re4 {[%emt 0:03:12]} 38. Bxe4 {[%emt 0:01:03]} fxe4+ {[%emt 0:00:05]} 39. Ke1 {[%emt 0:00:32] Threatens to win with Rg3.} Bg4 {[%emt 0:07:04]} 40. Qxa8 {[%emt 0:00:00]} Qc4 {[%emt 0:00:00]} 41. Re3 {[%emt 0:04:49] Intending Qe8 and mate.} Bxe2 {[%emt 0:00:57]} 42. Qd8 {[%emt 0:03:30]} (42. Rxe2 Qc3+ 43. Kf1 Qf3+ 44. Rf2 (44. Ke1 Qc3+ 45. Kd1 Qa1+ 46. Kd2 Qd4+ 47. Ke1 Qc3+ $11) 44... Qh3+ 45. Kg1 Qg3+ 46. Kf1 Qh3+ 47. Ke2 Qd3+ 48. Ke1 Qe3+ 49. Re2 (49. Kf1 Qh3+ $11) 49... Qc3+ 50. Kf2 Qf3+ 51. Kg1 (51. Ke1 Qc3+ $11) 51... Qxe2 $11) (42. Qxb7 $142 {[%csl Gf8][%cal Rb7h7]} Qc1+ 43. Kxe2 Qc2+ 44. Ke1 Qc1+ 45. Kf2 Qd2+ 46. Re2 Qf4+ 47. Kg1 Qg4+ 48. Kf1 (48. Rg2 Qd1+ 49. Kf2 Qd2+ 50. Kg1 Qe1+ 51. Kh2 Qh4+ 52. Kg1 Qe1+ 53. Kh2 Qh4+ 54. Kg1 Qe1+ $11) 48... Qh3+ 49. Ke1 Qc3+ 50. Kd1 Qa1+ 51. Kc2 Qa2+ 52. Qb2 Qc4+ 53. Kb1 Qd3+ 54. Qc2) 42... Bf3 {[%emt 0:01:01]} 43. Qf6+ {[%emt 0:00:16]} Kh5 {[%emt 0:00:02] Hoping for ...Qc1+.} 44. Qg6+ {[%emt 0:00:32]} Kh4 {[%emt 0:00:07]} 45. Qh6+ {[%emt 0:00:08]} (45. Ne6 {is a self mate.} Qc1+ 46. Kf2 Qd2+ 47. Kf1 Qxe3 48. Qh6+ Kg4 49. Qxg5+ Qxg5 50. Nxg5 Kxg5 51. Kg1 e3 52. Kf1 Kf5 53. Ke1 e2 54. Kf2 Kf4 55. Ke1 Kg3 56. Kd2 Kf2 57. Kd3 e1=Q 58. Kc2 Qb4 59. Kc1 Be4 60. Kd1 Qe1#) 45... Kg3 {[%emt 0:00:49][%cal Rc4c1]} 46. Qxg5+ {[%emt 0:00:08]} Kh3 {[%emt 0:00:22]} 47. Qh6+ {[%emt 0:01:03]} Kg2 {[%emt 0:00:38][%cal Rc4c1]} 48. Qg6+ {[%emt 0:00:32]} Kh1 {[%emt 0:00:28] And now ...Qc1+ would win.} 49. Qh6+ {[%emt 0:04:47]} Kg2 $1 {[%emt 0:00:13][%cal Rc4c1] [#]} 50. Qg7+ $1 {[%emt 0:00:08]} Kh1 {[%emt 0:00:34]} 51. Qc3 {[%emt 0:02:47]} Qxa4 {[%emt 0:02:38] ( -> ...Qd1+)} 52. Rxf3 {[%emt 0:02:41]} (52. Kf1 $142 {White threatens Qh8+ and mate.} Bg2+ 53. Kf2 Qa2+ 54. Re2 Qf7+ 55. Ke3 (55. Kg3 Qg8+ 56. Kh4 Qxf8 $14) 55... Qxf8 56. Qe1+ Kh2 57. Qh4+ Kg1 58. Qf2+ (58. Re1+ Bf1 $18) 58... Qxf2+ 59. Rxf2) 52... exf3 {[%emt 0:00:06]} 53. Qxf3+ {[%emt 0:00:05]} Kh2 $2 {[%emt 0:00:13]} (53... Kg1 54. Qe3+ Kg2) 54. Ne6 {[%emt 0:00:54]} Qb4+ {[%emt 0:02:00]} 55. Kf2 {[%emt 0:00:32][%csl Gf2][%cal Rf3g2]} Qb2+ {[%emt 0:01:36]} 56. Qe2 {[%emt 0:00:12]} Qf6+ {[%emt 0:00:08] [#]} 57. Ke3+ $1 {[%emt 0:00:35]} Kg3 {[%emt 0:00:06]} 58. Kd3 {[%emt 0:00:22]} Qf5+ {[%emt 0:03:19]} 59. Kc3 {[%emt 0:00:11]} Qf6+ {[%emt 0:00:07]} 60. Nd4 {[%emt 0:00:54]} a4 {[%emt 0:03:39]} 61. Qe3+ {[%emt 0:00:13]} Kg2 {[%emt 0:00:44]} 62. Qe4+ {[%emt 0:00:01]} Kg3 {[%emt 0:00:20]} 63. Qe3+ {[%emt 0:00:01]} Kg2 $1 {[%emt 0:00:10]} 64. Qd2+ {[%emt 0:00:40]} Kg3 {[%emt 0:00:35]} 65. Qd3+ {[%emt 0:00:01]} Kg4 {[%emt 0:00:18]} 66. Kb4 {[%emt 0:00:20]} Qf8 {[%emt 0:03:21]} 67. Qg6+ {[%emt 0:00:44]} Kh3 {[%emt 0:00:07]} 68. Qf5+ {[%emt 0:01:26] Weighted Error Value: White=0.61/Black=0.27 (precise)} 1-0

[Event "2nd Serbia Open Masters 2022"]
[Site "Novi Sad"]
[Date "2022.06.28"]
[Round "1.33"]
[White "Dudin, Gleb"]
[Black "Colovic, Dusan"]
[Result "1-0"]
[ECO "D30"]
[WhiteElo "2473"]
[BlackElo "2271"]
[Annotator "TA"]
[PlyCount "73"]
[EventDate "2022.06.28"]
[EventType "swiss"]
[EventCountry "SRB"]
[SourceTitle "playchess.com"]
[Source "ChessBase"]
[SourceQuality "1"]
[TimeControl "40/5400+30:900+30"]

{[%evp 9,73,12,14,6,8,-12,0,-23,0,0,0,0,0,0,0,0,0,10,14,0,0,0,16,-21,-10,-60,27,43,40,0,0,0,0,0,0,0,0,0,37,46,60,64,75,78,85,86,130,126,176,50,91,60,81,16,246,153,147,164,325,329,313,315,478,469,2188,1597]} 1. d4 {[%emt 0:00:26]} d5 {[%emt 0:00:12]} 2. c4 {[%emt 0:00:20]} e6 {[%emt 0:00:04]} 3. Nf3 {[%emt 0:00:13]} a6 {[%emt 0:00:10]} 4. Nbd2 {[%emt 0:05:14]} Nf6 {[%emt 0:01:44]} 5. g3 {[%emt 0:01:04]} c5 {[%emt 0:05:18]} 6. cxd5 {[%emt 0:11:37] D30: Queen's Gambit Declined: Systems without Nc3.} exd5 {[%emt 0:02:06]} 7. dxc5 {[%emt 0:08:53]} Bxc5 {[%emt 0:02:04]} 8. Nb3 {[%emt 0:00:16] The position is equal.} Ba7 {[%emt 0:04:28]} 9. Bg2 {[%emt 0:00:17]} Nc6 {[%emt 0:00:35]} 10. O-O {[%emt 0:00:37]} O-O {[%emt 0:03:57]} 11. Nbd4 {[%emt 0:05:42]} Re8 {[%emt 0:09:20] [#]} 12. b3 $146 {[%emt 0:14:40]} ({Predecessor:} 12. Bf4 Nxd4 13. Nxd4 Qb6 14. Nb3 Bg4 15. Bf3 Bh3 16. Bg2 Qe6 17. Re1 Bxg2 18. Kxg2 {½-½ (53) Dubrovin,R (2235)-Shishkov,A (2352) Tallinn 2019}) 12... Nxd4 {[%emt 0:20:58]} 13. Nxd4 {[%emt 0:00:11]} Bg4 {[%emt 0:00:18]} 14. Nf3 {[%emt 0:23:13]} Ne4 {[%emt 0:27:44] ...Qf6 is the strong threat.} 15. Bb2 {[%emt 0:00:09] Inhibits Qf6.} Rc8 {[%emt 0:00:40]} 16. Qd3 {[%emt 0:01:38]} Bf5 {[%emt 0:05:33][%cal Oe4g3] And now ...Nxg3! would win.} 17. Nh4 {[%emt 0:11:18] [#]} (17. Nd4 $11 Bg6 18. Qd1) 17... Qd7 {[%emt 0:00:07]} ({Better is} 17... Nxf2 $1 $15 18. Qxf5 Rxe2) 18. Nxf5 $11 {[%emt 0:01:39]} Qxf5 {[%emt 0:00:05]} 19. Bf3 {[%emt 0:02:22]} h5 {[%emt 0:00:28]} 20. Rad1 $40 {[%emt 0:04:57][%mdl 128] White is up to no good.} h4 {[%emt 0:02:07]} 21. Qxd5 {[%emt 0:01:24]} (21. Bd4 {seems wilder.} Bxd4 22. Qxd4 Rc2 23. a4) 21... Qxd5 {[%emt 0:00:15]} 22. Rxd5 {[%emt 0:00:07]} hxg3 {[%emt 0:00:14]} 23. hxg3 {[%emt 0:00:40]} Nxg3 {[%emt 0:00:37]} (23... Rc2 $5 {[%cal Rc2b2]} 24. Bd4 Bxd4 25. Rxd4 Nd2 $11) 24. Re1 {[%emt 0:02:20]} Ne4 {[%emt 0:05:32] Prevents Rg5.} 25. e3 {[%emt 0:01:11]} Rc2 {[%emt 0:00:36]} 26. Re2 {[%emt 0:00:19]} Rc7 {[%emt 0:04:40]} 27. Kg2 {[%emt 0:01:17]} f6 {[%emt 0:00:42]} 28. Bh5 {[%emt 0:00:52]} g6 {[%emt 0:00:11]} (28... Rf8 $16 29. Bg6 Nc3 30. Bxc3 Rxc3) 29. Bf3 {[%emt 0:00:35]} (29. Bxg6 $18 Rg7 {[#]} 30. Rg5 $3 {[%mdl 512]}) 29... Kf7 {[%emt 0:00:53]} 30. Rd1 {[%emt 0:00:44]} Kg7 {[%emt 0:01:46]} 31. Rh1 {[%emt 0:01:12]} (31. a4 $16) 31... Rc5 $2 {[%emt 0:00:27] Black cannot hold the game after this.} (31... Ng5 $11) 32. Rh4 {[%emt 0:00:27]} Nd6 {[%emt 0:01:28]} 33. Rd2 {[%emt 0:00:29]} Bb8 {[%emt 0:00:21]} (33... Rd8 34. Rf4 Rf5) 34. Ba3 $18 {[%emt 0:00:28] This bishop pair is nice.} Rg5+ {[%emt 0:00:10]} 35. Kf1 {[%emt 0:00:16]} Re6 {[%emt 0:01:31]} (35... Nf7 {might work better.} 36. Bxb7 Rf5) 36. Rhd4 {[%emt 0:00:46]} Nb5 {[%emt 0:00:21]} (36... Rf5 $142 37. Bg4 (37. Bxd6 Rxd6 38. Rxd6 Bxd6 $16) 37... Ra5 38. Bxe6 Rxa3 39. Rxd6 Bxd6 40. Rxd6 b5 41. Rd7+ Kh6) 37. Rd7+ {[%emt 0:00:09] Weighted Error Value: White=0.22 (precise) /Black=0.39} 1-0